Cogmind - Beta 15 @@@ ROGUE MODE // 2025.10.03 @ 15:55:22 Player: leek.801 Result: Destroyed by G-34 Mercenary with Small Laser Performance ------------- Evolutions (1) 500 Regions Visited (2) 400 Robots Destroyed (23) 115 Value Destroyed (510) 510 Prototype IDs (0) 0 Alien Tech Used (0) 0 Bonus (0) 0 TOTAL SCORE: 1525 Bonus ------- None Cogmind --------- Core Integrity 0/400 Matter 300/300 Energy 100/100 System Corruption 2% Temperature Cool (15) Movement Core (200) Ox3 Location -9/Materials Parts ------- > --- POWER (1) -------- (None) > --- PROPULSION (3) --- (None) > --- UTILITY (3) ------ Medium Storage Unit > --- WEAPON (2) ------- (None) > --- INVENTORY (10) --- Ion Engine Ion Engine Wheel Compact Wheel Heat Sink ECM Suite Hardened Light Armor Plating Maul Peak State ------------ > --- POWER ------------ Ion Engine > --- PROPULSION ------- Wheel Wheel Wheel > --- UTILITY ---------- Medium Storage Unit Sensor Array Signal Interpreter > --- WEAPON ----------- Medium Laser Light Assault Rifle > --- INVENTORY -------- Ion Engine Wheel Compact Wheel ECM Suite Hardened Light Armor Plating EM Pulse Gun Small Laser Maul [Rating: 10] Favorites ----------- Power Ion Engine Engine Ion Engine Propulsion Wheel Leg Aluminum Leg Wheel Wheel Utility Medium Storage Unit Device Sensor Array Storage Medium Storage Unit Processor Signal Interpreter Weapon Medium Laser Energy Gun Medium Laser Ballistic Gun Assault Rifle Build | -11 -10 -9 ------- Run | Yrd Mat Mat Slots Evolved 2 | . . 2 Power . | . . . Propulsion 1 | . . 1 Utility 1 | . . 1 Weapon . | . . . Parts Attached 21 | 6 11 4 Power 3 | 1 1 1 Engine 3 | 1 1 1 Core . | . . . Reactor . | . . . Propulsion 6 | 2 4 . Treads . | . . . Leg 2 | 2 . . Wheel 4 | . 4 . Hover . | . . . Flight . | . . . Utility 5 | 1 4 . Device 2 | . 2 . Storage 2 | 1 1 . Processor 1 | . 1 . Hackware . | . . . Protection . | . . . Artifact . | . . . Weapon 7 | 2 2 3 Energy Gun 3 | 1 . 2 Energy Cannon . | . . . Ballistic Gun 4 | 1 2 1 Ballistic Cannon . | . . . Launcher . | . . . Special Weapon . | . . . Impact Weapon . | . . . Slashing Weapon . | . . . Piercing Weapon . | . . . Special Melee Weapon . | . . . Unidentified Prototypes . | . . . Parts Lost 12 | . 1 11 Power 1 | . . 1 Propulsion 4 | . 1 3 Utility 2 | . . 2 Weapon 5 | . . 5 Highest Loss Streak 7 | . 1 7 To Critical Strikes . | . . . Average Backups 6 | 1 5 8 Power 1 | . 1 1 Propulsion 2 | 1 2 2 Utility 1 | . . 2 Weapon 1 | . 1 2 Tool/Special . | . . . Unused Backups 6 | . 2 4 Power 1 | . . 1 Propulsion 2 | . . 2 Utility 3 | . 2 1 Weapon . | . . . Tool/Special . | . . . Average Slot Usage (%) 94 | . 96 90 Engine 12 | . 14 9 Leg 10 | . 15 . Wheel 16 | . 11 27 Device 10 | . 11 10 Storage 13 | . 14 11 Processor 3 | . . 11 Energy Gun 10 | . 11 10 Ballistic Gun 14 | . 16 10 Peak Build Rating 10 | 6 8 10 Average Rating 7 | 4 6 9 On Entrance 4 | . 6 8 Naked Turns . | . . . Heaviest Build 21 | 14 21 19 Greatest Support 30 | 20 20 30 Greatest Overweight (x) 4 | 2 2 4 Average Overweight (x) . | . . . Largest Inventory Capacity 10 | 8 10 10 Average Capacity 9 | 7 9 10 Most Carried 10 | 4 10 10 Average Carried 6 | 2 5 8 Final Capacity 10 | 8 10 10 Final Carried 10 | 4 10 8 Class Distribution -------------------- 82% | Mutant 17% | Scavenger-Mutant Dominant Class ---------------- Mutant | -10/Materials Mutant | -9/Materials Resources | -11 -10 -9 ----------- Run | Yrd Mat Mat Matter Collected 584 | 199 279 106 Remotely . | . . . Salvage Created 630 | . 407 223 Parts 37 | . 23 14 Haulers Intercepted . | . . . Recyclers Shooed 4 | . 4 . Parts Field Recycled . | . . . Retrieved Matter . | . . . Parts Self-Destructed . | . . . Prevented . | . . . Kills | -11 -10 -9 ------- Run | Yrd Mat Mat Combat Hostiles Destroyed 17 | . 11 6 Guns 16 | . 10 6 AOE 1 | . 1 . Classes Destroyed 6 | . 5 1 Worker 2 | . 2 . Recycler 1 | . 1 . Watcher 3 | . 2 1 Swarmer 7 | . 6 1 Grunt 9 | . 5 4 Sentry 1 | . . 1 Best Kill Streak 5 | . 5 3 Combat Bots Only 4 | . 4 3 Max Kills in Single Turn 2 | . 2 1 Gunslinging . | . . . Exploded 1 | . 1 . Melee . | . . . Uniques/NPCs Destroyed . | . . . Combat | -11 -10 -9 -------- Run | Yrd Mat Mat Hostile Shots Fired 209 | . 68 141 Missed 66 | . 16 50 Hits 143 | . 52 91 Projectile 143 | . 52 91 Critical Strikes 3 | . . 3 Damage Taken 1696 | . 661 1035 Core 625 | . 214 411 Absorbed by Shields . | . . . Core Remaining (%) 57 | 100 14 . Volleys Fired 84 | . 54 30 Largest 2 | . 2 2 Hottest 70 | . 70 70 Shots Fired 156 | . 102 54 Gun 156 | . 102 54 Cannon . | . . . Launcher . | . . . Special . | . . . Kinetic 90 | . 60 30 Thermal 63 | . 42 21 Explosive . | . . . Electromagnetic 3 | . . 3 Robot Hit Streak 9 | . 9 8 Robot Miss Streak 7 | . 7 3 Penetration Max . | . . . Secondary Targets 1 | . 1 . Max Gunslinging Chain 1 | . 1 . Shots Hit Robots 92 | . 55 37 Core Hits 37 | . 24 13 Critical Kills . | . . . Critical Parts Destroyed . | . . . Critical Strikes 2 | . 2 . Burn 2 | . 2 . Melee Attacks . | . . . Impact . | . . . Slashing . | . . . Piercing . | . . . Sneak Attacks . | . . . Combat Hostiles . | . . . Follow-up Attacks . | . . . Damage Inflicted 1272 | . 864 408 Guns 1104 | . 698 406 Cannons . | . . . Explosions 166 | . 166 . Melee . | . . . Ramming 2 | . . 2 Kinetic 646 | . 436 210 Thermal 601 | . 428 173 Explosive . | . . . Electromagnetic 23 | . . 23 Impact . | . . . Slashing . | . . . Piercing . | . . . Highest Corruption 2 | . . 2 Average Corruption 2 | . . 2 Corruption Purged . | . . . Corruption Blocked . | . . . Overload Shots . | . . . Overflow Damage 37 | . 37 . Projectiles . | . . . Explosions 37 | . 37 . Melee . | . . . Knockbacks . | . . . Impact . | . . . Kinetic . | . . . Secondary . | . . . Self-Inflicted Damage 162 | . 161 1 Shots 2 | . 2 . Rammed 3 | . . 3 Targets Rammed 3 | . . 3 Kicked . | . . . Crushed . | . . . Highest Temperature 190 | . 190 82 Average Temperature 64 | . 76 38 Received Heat Transfer 582 | . 150 432 Siege Activations . | . . . Martial Activations . | . . . Shielding Activations . | . . . Robots Disrupted . | . . . Combat Hostiles . | . . . Robots Corrupted . | . . . Combat Hostiles . | . . . Parts Fried . | . . . Impact Corruptions . | . . . Robots Melted . | . . . Combat Hostiles . | . . . Parts Melted 2 | . 1 1 Heat Transferred 1531 | . 1025 506 Parts Sabotaged . | . . . Parts Stolen . | . . . Parts Stripped . | . . . Power Chain Reactions . | . . . Alert | -11 -10 -9 ------- Run | Yrd Mat Mat Maximum Alert Level . | . . . Low Security (%) 100 | 100 100 100 Level 1 . | . . . Level 2 . | . . . Level 3 . | . . . Level 4 . | . . . Level 5 . | . . . High Security . | . . . Max Security . | . . . Peak Influence 184 | . 184 76 Initial 76 | . . 76 Average 47 | . 59 36 Influence Increases 555 | . 373 182 Destroy 0b10 Robot/C 340 | . 220 120 Destroy 0b10 Robot/NC 30 | . 25 5 Destroy Leader 106 | . 64 42 Successful Hack 15 | . 15 . Disable Machine 30 | . 30 . Destroy Structure 19 | . 19 . Partial Spotted 15 | . . 15 Influence Decreases 520 | . 192 328 Entered New Map 105 | . . 105 Time Decay 342 | . 182 160 Lost Part 73 | . 10 63 Squads Dispatched 7 | . 3 4 Investigation 3 | . 1 2 Extermination . | . . . Reinforcement 4 | . 2 2 Assault . | . . . Garrison . | . . . Intercept . | . . . Searches Triggered . | . . . Construction Impeded . | . . . Haulers Reinforced . | . . . Active Scanning Responses . | . . . Cargo Convoy Interrupts . | . . . Stealth | -11 -10 -9 --------- Run | Yrd Mat Mat Distress Signals 4 | . 1 3 Communications Jammed . | . . . Distress Signals . | . . . Times Spotted 34 | . 16 18 Peak Tracking Total 11 | . 6 11 Tactical Retreats . | . . . Traps | -11 -10 -9 ------- Run | Yrd Mat Mat Traps Triggered 1 | . 1 . Indirectly . | . . . Trap Hack Attempts . | . . . Triggered . | . . . Disarmed . | . . . Reprogrammed . | . . . Reused . | . . . Traps Extracted . | . . . Installed . | . . . Triggered . | . . . Machines | -11 -10 -9 ---------- Run | Yrd Mat Mat Machines Disabled 2 | . 2 . Max in Single Turn 2 | . 2 . Machines Repaired . | . . . Machines Dismantled . | . . . Machines Sabotaged . | . . . Overloaded Fab Kills . | . . . Hacking | -11 -10 -9 --------- Run | Yrd Mat Mat Machines Accessed 6 | . 2 4 Terminals 6 | . 2 4 Fabricators . | . . . Repair Stations . | . . . Recycling Units . | . . . Scanalyzers . | . . . Garrison Access . | . . . Total Hacks 20 | . 8 12 Successful 7 | . 5 2 Failed 13 | . 3 10 Catastrophic 3 | . 1 2 Database Lockouts . | . . . Manual 20 | . 8 12 Terminals 20 | . 8 12 Fabricators . | . . . Repair Stations . | . . . Recycling Units . | . . . Scanalyzers . | . . . Garrison Access . | . . . Terminal Hacks 1 | . 1 . Terminal Index 1 | . 1 . Fabricator Hacks . | . . . Repair Station Hacks . | . . . Recycling Unit Hacks . | . . . Scanalyzer . | . . . Garrison Access Hacks . | . . . Unauthorized Hacks 6 | . 4 2 Terminals 6 | . 4 2 Botnet 4 | . 2 2 Skim 2 | . 2 . Fabricators . | . . . Repair Stations . | . . . Recycling Units . | . . . Scanalyzers . | . . . Garrison Access . | . . . Data Cores Recovered . | . . . Used . | . . . Hacking Detections 6 | . 2 4 Full Trace Events 3 | . 1 2 Feedback Events . | . . . Feedback Blocked . | . . . Robot Schematics Acquired . | . . . Robots Built . | . . . Authchips . | . . . Time . | . . . Total Robot Build Rating . | . . . Part Schematics Acquired . | . . . Parts Built . | . . . Authchips . | . . . Time . | . . . Total Part Build Rating . | . . . Parts Repaired . | . . . Time . | . . . Parts Recycled . | . . . Recycled Matter . | . . . Retrieved Matter . | . . . Retrieved Components . | . . . Parts Scanalyzed . | . . . Part Schematics Acquired . | . . . Parts Damaged . | . . . Bothacking | -11 -10 -9 ------------ Run | Yrd Mat Mat Used RIF Installer . | . . . Robots Hacked . | . . . Non-combat . | . . . Combat . | . . . Robot Hacks Applied . | . . . Relay Couplers Released . | . . . Fabnet Peak Effective % . | . . . Robots Rewired . | . . . Allies Hacked . | . . . Hacks Repelled . | . . . Allies | -11 -10 -9 -------- Run | Yrd Mat Mat Total Allies . | . . . Largest Group . | . . . Highest-Rated Group . | . . . Highest-Rated Ally . | . . . Total Orders . | . . . Ally Attacks . | . . . Total Damage . | . . . Kills . | . . . Allies Corrupted . | . . . Allies Melted . | . . . Intel | -11 -10 -9 ------- Run | Yrd Mat Mat Active Infowar (turns) 470 | . 143 327 Sensors 468 | . 141 327 ECM 2 | . 2 . Robot Analysis Total . | . . . Derelict Logs Recovered . | . . . Drone Launches . | . . . Drone Recoveries . | . . . Exploration | -11 -10 -9 ------------- Run | Yrd Mat Mat Turns Passed 1125 | 86 699 340 Spaces Moved 753 | 63 434 256 Core 22 | 9 . 13 Treads . | . . . Legs 249 | 54 195 . Wheels 482 | . 239 243 Hover . | . . . Flight . | . . . Fastest Speed 50 | 50 80 80 Average Speed 105 | 115 115 87 Slowest Speed 250 | 150 190 250 Overloaded Moves . | . . . Propulsion Burnouts . | . . . Robots Hopped . | . . . Potential Cave-ins . | . . . Cave-ins Triggered . | . . . Exploration Rate (%) 30 | 4 64 23 Regions Visited 2 Branch Regions . Pre-discovered Areas . | . . . Known Exits Taken 1 | . 1 . Unknown Exits Taken 1 | 1 . . Scrap Searched . | . . . Spaces Dug . | . . . Terrain Destroyed 20 | . 20 . Melee . | . . . Projectile . | . . . AOE 20 | . 20 . Terrain Rammed . | . . . Walls Destroyed . | . . . Machines Disabled . | . . . Actions | -11 -10 -9 --------- Run | Yrd Mat Mat Total 927 | 73 535 319 Wait 43 | 1 19 23 Move 751 | 62 433 256 Hop . | . . . Pick Up 12 | 4 7 1 Fast Attach 14 | 6 7 1 Attach 5 | . 1 4 Detach 2 | . 2 . Swap 5 | . 4 1 Drop 8 | . 8 . Fire 84 | . 54 30 Melee . | . . . Ram 3 | . . 3 Kick . | . . . Crush . | . . . Escape Stasis . | . . . Rewire . | . . . Trap . | . . . Miscellaneous . | . . . Route ------- -11/Scrapyard -10/Materials (discovered 2 exits: *Mat x2) -9/Materials History --------- Turn | Location | Event 11 | -11/Scrapyard | Discovered new exit (range 15) 87 | -11/Scrapyard | Entered Materials 185 | -10/Materials | Discovered new exit (range 16) 300 | -10/Materials | Build established: Mutant 700 | -10/Materials | Core integrity fell below 50% 700 | -10/Materials | Core integrity fell below 20% 730 | -10/Materials | Discovered new exit (range 13) 769 | -10/Materials | Identified exit to Materials 786 | -10/Materials | Entered another Materials area 786 | -9/Materials | Evolved 2 slots: Propulsion x1, Utility x1 1085 | -9/Materials | Core integrity fell below 50% 1100 | -9/Materials | Lost 7 parts (1p3n3w) 1115 | -9/Materials | Core integrity fell below 20% 1126 | -9/Materials | Destroyed by G-34 Mercenary with Small Laser Last Messages --------------- 01115_ Sml. Laser destroyed. 01116_ K-01 Serf collects debris. 01117_ Acquired 3 matter. 01117_ Matter Filter disabled. 01118_ R-06 Scavenger collects Lgt. Assault Rifle. 01118_ S-10 Pest destroyed. 01119_ Acquired 3 matter. 01119_ K-01 Serf collects debris. 01120_ G-34 Mercenary destroyed. 01121_ Acquired 3 matter. 01121_ R-06 Scavenger collects Lgt. Ion Engine. 01121_ Hvy. Assault Rifle destroyed. 01122_ Slammed into G-34 Mercenary. 01122_ Destabilizing: System corrupted (+2). 01122_ K-01 Serf collects debris. 01122_ Signal Interpreter destroyed. 01124_ Slammed into G-34 Mercenary. 01125_ K-01 Serf collects debris. 01126_ Slammed into K-01 Serf. Map ----- +----------------------------------------------------+ | ??????????????????????????????####### | | ??????????????????????????????# | | ??????????????????????????????# | | ??????????????????????????????# | | ??????????????????????????????# | | ??????????????????????????????# | | ??????????????????????????????# | | ???????????????????????###########+## | | ???????????????????????# | | ???????????????????????# | | ???????????????????????# """ | | ????????????????######## "Y" ### | | ????????????????# # "#? | | ????????????????# # T#? | | ????????????????#""" + "#? | | ????????????????#""" # ##? | | ????????????????#""" !# #?? | | ????????????????# # #?? | | ??????????#####?############### ### | | ????????? #?###### ####???# # | | ????????""""" #?# #???# # | | ???????"""""" #?# """ #???# + | | ??????""""""" #?# "Y" #???# # " | | ????? """""""=#?# #???# # " | | ????# """"""%g### #???# # " | | ????# k@[+%/ * "" #???# # | | ???# Y %*=###= %= "" #???# # | | ???#########g##?# [ """ #???# ### | | ???????????# #??#####/#####???# ### | | ???????????# ###### #?????# | | ???????????# #?????# | | ???????????a #?????# | | ???????????# #?????####### | | ???????????### #### #???????????? | | ?????????????#????## ##???????????? | | ???????????????????# %############## | | ???????????????????# | | ???????????? / | | ?????????# # | | ?????????# # ############## | | ?????????#########?# #????????????? | | ??????????????????# ????????????? | | ????????????????? "" ????????????? | | ??????????????? T ????????????? | | ?????????????? ????????????? | | ??????????????##### ????????????? | | ??????????????????## #????????????? | | ???????????????????# ?????????????? | | ???????????????????# ?????????????? | | ???????????????????? ?????????????? | +----------------------------------------------------+ Best States ------------- Heat Dissipation 28 Energy Generation 10 Energy Capacity 250 Matter Stores 300 Matter Capacity 300 Sight Range 16 Robot Scan Range 14 Terrain Scan Density 10 Evasion (%) 55 Item Schematics ----------------- None Robot Schematics ------------------ None Fabricated ------------ Nothing Repaired ---------- Nothing Alien Tech Used ----------------- None Achievements -------------- None Challenges ------------ None Game ------ Seed NullVisualBlade Manual? 0 Play Time 00:25:59 Cumulative 108.7 hours Start 2025.09.28 @ 21:22:29 End 2025.10.03 @ 15:55:22 Sessions 3 Manual Loads 0 Difficulty Rogue Special Mode None Game No. 119 Rogue 119 Adventurer 0 Explorer 0 Win Type - Total 0 Types 0/0/0/0/0/0/0/0/0/0 Lore% 14 Gallery% 24 Achievement% 23 Wizard Run 0 Options --------- Layout 2 ASCII 0 Keyboard 0 Movement Numpad Keybinds 0 Fullscreen 1 Font 24/Smallcaps Map View 50x44 Zoom Use 0% Tactical HUD 1 Map Filters NONE Filters NONE Steam 1 RUN: a6c95b36-9e2c-4c93-a091-ad85e34ba326